[Event "*** Qualifier 1: Titled Tuesday 3|2 Blitz"]
[Site "Chess.com"]
[Date "2017.04.04"]
[Round "6"]
[White "AndrewMcStone"]
[Black "Wolverine_master"]
[Result "1-0"]
[WhiteElo "1996"]
[BlackElo "1956"]
[TimeControl "180+2"]
[EndTime "14:27:33 PDT"]
[Termination "AndrewMcStone won on time"]

1. d4 {[%clk 0:03:02]} 1... Nf6 {[%clk 0:03:00.9]} 2. c4 {[%clk 0:03:03.4]} 2...
c5 {[%clk 0:03:02.5]} 3. d5 {[%clk 0:03:03.4]} 3... b5 {[%clk 0:03:04.1]} 4.
cxb5 {[%clk 0:03:03.2]} 4... a6 {[%clk 0:03:05.6]} 5. f3 {[%clk 0:03:04.7]} 5...
axb5 {[%clk 0:03:04.1]} 6. e4 {[%clk 0:03:05.8]} 6... e6 {[%clk 0:02:56.8]} 7.
Bxb5 {[%clk 0:02:58.4]} 7... exd5 {[%clk 0:02:57]} 8. exd5 {[%clk 0:02:30]} 8...
g6 {[%clk 0:02:37.6]} 9. Nh3 {[%clk 0:02:09.7]} 9... Bg7 {[%clk 0:02:38]} 10.
O-O {[%clk 0:02:10.4]} 10... O-O {[%clk 0:02:39]} 11. Nc3 {[%clk 0:02:04.9]}
11... d6 {[%clk 0:02:40.4]} 12. Nf2 {[%clk 0:02:03.1]} 12... Ba6 {[%clk
0:02:41.3]} 13. a4 {[%clk 0:01:58.2]} 13... Nbd7 {[%clk 0:02:35.6]} 14. Bf4
{[%clk 0:01:37.8]} 14... Ne5 {[%clk 0:02:15.7]} 15. Bxa6 {[%clk 0:01:07.6]}
15... Rxa6 {[%clk 0:02:14.1]} 16. Qe2 {[%clk 0:01:06.6]} 16... Rb6 {[%clk
0:02:15.2]} 17. Nb5 {[%clk 0:01:02.2]} 17... Nh5 {[%clk 0:02:05.6]} 18. Bd2
{[%clk 0:00:53.5]} 18... c4 {[%clk 0:02:02.3]} 19. Bc3 {[%clk 0:00:45.5]} 19...
Re8 {[%clk 0:02:00.5]} 20. Qd2 {[%clk 0:00:35.3]} 20... Qh4 {[%clk 0:01:30.7]}
21. Rfe1 {[%clk 0:00:30.4]} 21... Qf4 {[%clk 0:01:20.5]} 22. Re4 {[%clk
0:00:21.3]} 22... Qxd2 {[%clk 0:01:20.5]} 23. Bxd2 {[%clk 0:00:23.2]} 23... f5
{[%clk 0:01:16.8]} 24. Ree1 {[%clk 0:00:21]} 24... Ra8 {[%clk 0:01:17.4]} 25. f4
{[%clk 0:00:18.1]} 25... Nd3 {[%clk 0:01:16.4]} 26. Nxd3 {[%clk 0:00:19]} 26...
cxd3 {[%clk 0:01:18.3]} 27. Bc3 {[%clk 0:00:19.5]} 27... Nxf4 {[%clk 0:01:15.9]}
28. Bxg7 {[%clk 0:00:19.4]} 28... Kxg7 {[%clk 0:01:17.8]} 29. g3 {[%clk
0:00:16.5]} 29... Nxd5 {[%clk 0:01:18.7]} 30. Red1 {[%clk 0:00:16.6]} 30... d2
{[%clk 0:01:15.9]} 31. Rxd2 {[%clk 0:00:16.5]} 31... Rxb5 {[%clk 0:01:16.5]} 32.
axb5 {[%clk 0:00:10.5]} 32... Rxa1+ {[%clk 0:01:16.9]} 33. Kf2 {[%clk
0:00:12.4]} 33... Nc7 {[%clk 0:01:12.2]} 34. b6 {[%clk 0:00:13.3]} 34... Na6
{[%clk 0:01:04.7]} 35. Rxd6 {[%clk 0:00:11.6]} 35... Rb1 {[%clk 0:01:05.2]} 36.
Rd2 {[%clk 0:00:09]} 36... Kf6 {[%clk 0:01:04.4]} 37. b7 {[%clk 0:00:09.5]}
37... Ke6 {[%clk 0:01:02]} 38. Kf3 {[%clk 0:00:09.3]} 38... g5 {[%clk
0:01:02.6]} 39. h3 {[%clk 0:00:09.5]} 39... h5 {[%clk 0:01:01]} 40. Rc2 {[%clk
0:00:09.4]} 40... g4+ {[%clk 0:01:01]} 41. hxg4 {[%clk 0:00:10.6]} 41... hxg4+
{[%clk 0:01:02.9]} 42. Kf4 {[%clk 0:00:11.9]} 42... Rf1+ {[%clk 0:01:02.4]} 43.
Kg5 {[%clk 0:00:12.8]} 43... Kd7 {[%clk 0:00:44.4]} 44. Rc8 {[%clk 0:00:12.9]}
44... Rf3 {[%clk 0:00:42.5]} 45. Ra8 {[%clk 0:00:10.8]} 45... Rxg3 {[%clk
0:00:27.2]} 46. Rxa6 {[%clk 0:00:11.5]} 46... Kc7 {[%clk 0:00:28.1]} 47. Rb6
{[%clk 0:00:11.5]} 47... Kb8 {[%clk 0:00:23.7]} 48. Kxf5 {[%clk 0:00:12.5]}
48... Rg1 {[%clk 0:00:23.9]} 49. Kf4 {[%clk 0:00:12.9]} 49... g3 {[%clk
0:00:25.3]} 50. Kf3 {[%clk 0:00:14]} 50... Rf1+ {[%clk 0:00:10.3]} 51. Kxg3
{[%clk 0:00:13.5]} 51... Rf5 {[%clk 0:00:11.8]} 52. Kg4 {[%clk 0:00:12.8]} 52...
Rd5 {[%clk 0:00:12.3]} 53. Kf4 {[%clk 0:00:12.9]} 53... Rh5 {[%clk 0:00:13.1]}
54. Ke4 {[%clk 0:00:13.2]} 54... Rg5 {[%clk 0:00:14]} 55. Kd4 {[%clk 0:00:13.9]}
55... Rf5 {[%clk 0:00:13.7]} 56. Kc4 {[%clk 0:00:14.8]} 56... Rf2 {[%clk
0:00:06.3]} 57. b3 {[%clk 0:00:14.3]} 57... Rf5 {[%clk 0:00:07]} 58. Kb4 {[%clk
0:00:14.5]} 58... Rf4+ {[%clk 0:00:07.9]} 59. Ka5 {[%clk 0:00:15]} 59... Rf2
{[%clk 0:00:04.7]} 60. Kb5 {[%clk 0:00:13.7]} 60... Rb2 {[%clk 0:00:04.9]} 61.
Kc6 {[%clk 0:00:12.8]} 61... Rc2+ {[%clk 0:00:05.9]} 62. Kb5 {[%clk 0:00:13.7]}
62... Rc3 {[%clk 0:00:05.8]} 63. b4 {[%clk 0:00:11.4]} 63... Rc2 {[%clk
0:00:06.7]} 64. Rc6 {[%clk 0:00:11.5]} 64... Rb2 {[%clk 0:00:05.9]} 65. Rh6
{[%clk 0:00:04.7]} 65... Kxb7 {[%clk 0:00:04.2]} 66. Rh7+ {[%clk 0:00:06.6]}
66... Kb8 {[%clk 0:00:02.2]} 67. Kc5 {[%clk 0:00:07.2]} 1-0

[Event "*** Qualifier 1: Titled Tuesday 3|2 Blitz"]
[Site "Chess.com"]
[Date "2017.04.04"]
[Round "6"]
[White "Durarbayli"]
[Black "IamSchrodingersCat"]
[Result "1/2-1/2"]
[WhiteElo "2619"]
[BlackElo "2387"]
[TimeControl "180+2"]
[EndTime "14:27:37 PDT"]
[Termination "Game drawn by repetition"]

1. e4 {[%clk 0:03:02]} 1... c5 {[%clk 0:03:00.7]} 2. Nf3 {[%clk 0:02:59.4]} 2...
d6 {[%clk 0:03:01.7]} 3. d4 {[%clk 0:03:00.1]} 3... cxd4 {[%clk 0:03:03.6]} 4.
Nxd4 {[%clk 0:03:01]} 4... Nf6 {[%clk 0:03:03]} 5. Nc3 {[%clk 0:03:01.5]} 5...
g6 {[%clk 0:03:04.2]} 6. Bc4 {[%clk 0:02:54.7]} 6... Bg7 {[%clk 0:03:04.9]} 7.
Be3 {[%clk 0:02:52.3]} 7... O-O {[%clk 0:03:05.1]} 8. Bb3 {[%clk 0:02:52.5]}
8... Nc6 {[%clk 0:02:59.3]} 9. h3 {[%clk 0:02:17.7]} 9... Bd7 {[%clk 0:02:56.3]}
10. O-O {[%clk 0:02:17.8]} 10... a5 {[%clk 0:02:55.3]} 11. a3 {[%clk 0:02:10.6]}
11... Rc8 {[%clk 0:02:55.1]} 12. Re1 {[%clk 0:02:07.6]} 12... Ne5 {[%clk
0:02:53.1]} 13. Bf4 {[%clk 0:01:43.8]} 13... Nc4 {[%clk 0:02:24.7]} 14. Rb1
{[%clk 0:01:40]} 14... Nxa3 {[%clk 0:02:16.7]} 15. bxa3 {[%clk 0:01:39]} 15...
Rxc3 {[%clk 0:02:16.5]} 16. e5 {[%clk 0:01:38.6]} 16... dxe5 {[%clk 0:02:06.9]}
17. Bxe5 {[%clk 0:01:40.5]} 17... Rc8 {[%clk 0:01:58.5]} 18. Qf3 {[%clk
0:01:37.2]} 18... a4 {[%clk 0:01:29.9]} 19. Ba2 {[%clk 0:01:30.1]} 19... Bc6
{[%clk 0:01:29.7]} 20. Nxc6 {[%clk 0:01:28.4]} 20... bxc6 {[%clk 0:01:31.6]} 21.
Red1 {[%clk 0:01:08.1]} 21... Qa5 {[%clk 0:01:27.6]} 22. Bc3 {[%clk 0:00:56.2]}
22... Qf5 {[%clk 0:01:23.5]} 23. Qxf5 {[%clk 0:00:53.1]} 23... gxf5 {[%clk
0:01:25.4]} 24. Rb4 {[%clk 0:00:50.6]} 24... Nd5 {[%clk 0:01:11.9]} 25. Bxg7
{[%clk 0:00:45]} 25... Kxg7 {[%clk 0:00:56.2]} 26. Bxd5 {[%clk 0:00:44.5]} 26...
cxd5 {[%clk 0:00:58.1]} 27. Rxd5 {[%clk 0:00:45.1]} 27... Rxc2 {[%clk
0:00:54.9]} 28. Rxf5 {[%clk 0:00:45.2]} 28... e6 {[%clk 0:00:35.2]} 29. Rg4+
{[%clk 0:00:43.8]} 29... Kh8 {[%clk 0:00:34.3]} 30. Rf3 {[%clk 0:00:37.6]} 30...
Ra2 {[%clk 0:00:18.5]} 31. Rxa4 {[%clk 0:00:37.4]} 31... Kg7 {[%clk 0:00:18.6]}
32. Rg4+ {[%clk 0:00:33.7]} 32... Kh8 {[%clk 0:00:20]} 33. g3 {[%clk 0:00:34.2]}
33... f5 {[%clk 0:00:18.6]} 34. Ra4 {[%clk 0:00:33.7]} 34... Kg7 {[%clk
0:00:18]} 35. Re3 {[%clk 0:00:31.8]} 35... Kf6 {[%clk 0:00:17.7]} 36. Ra6 {[%clk
0:00:31.4]} 36... Re8 {[%clk 0:00:18.2]} 37. h4 {[%clk 0:00:31.5]} 37... h6
{[%clk 0:00:17.1]} 38. Kg2 {[%clk 0:00:31.8]} 38... Ra1 {[%clk 0:00:18.3]} 39.
Kf3 {[%clk 0:00:27.2]} 39... Ra2 {[%clk 0:00:19.5]} 40. a4 {[%clk 0:00:25.4]}
40... Re7 {[%clk 0:00:18.5]} 41. a5 {[%clk 0:00:26.2]} 41... Re8 {[%clk
0:00:19.1]} 42. Kg2 {[%clk 0:00:26.9]} 42... Re7 {[%clk 0:00:20.2]} 43. Ra8
{[%clk 0:00:27.4]} 43... Kf7 {[%clk 0:00:19]} 44. a6 {[%clk 0:00:28.1]} 44...
Kf6 {[%clk 0:00:14.7]} 45. Rb3 {[%clk 0:00:27.9]} 45... h5 {[%clk 0:00:10.8]}
46. Rb7 {[%clk 0:00:28.3]} 46... Rxa6 {[%clk 0:00:10.7]} 47. Rf8+ {[%clk
0:00:24]} 47... Kg7 {[%clk 0:00:11.9]} 48. Rbb8 {[%clk 0:00:22.9]} 48... Raa7
{[%clk 0:00:08.3]} 49. Rg8+ {[%clk 0:00:23.6]} 49... Kf6 {[%clk 0:00:09.1]} 50.
Rg5 {[%clk 0:00:21.4]} 50... Rh7 {[%clk 0:00:09.3]} 51. Rbg8 {[%clk 0:00:22.3]}
51... Raf7 {[%clk 0:00:07.7]} 52. Kf3 {[%clk 0:00:20.8]} 52... Rd7 {[%clk
0:00:06.5]} 53. R8g6+ {[%clk 0:00:20.7]} 53... Ke5 {[%clk 0:00:06.4]} 54. Ke3
{[%clk 0:00:19.8]} 54... Ra7 {[%clk 0:00:06.9]} 55. Rg8 {[%clk 0:00:20.3]} 55...
Ra3+ {[%clk 0:00:07.5]} 56. Ke2 {[%clk 0:00:21.5]} 56... Ra2+ {[%clk 0:00:09]}
57. Kf1 {[%clk 0:00:22.3]} 57... Ra1+ {[%clk 0:00:10.1]} 58. Kg2 {[%clk
0:00:22.9]} 58... Raa7 {[%clk 0:00:11.7]} 59. Rd8 {[%clk 0:00:20.9]} 59... Ra6
{[%clk 0:00:10.3]} 60. Kf3 {[%clk 0:00:21.6]} 60... Ra3+ {[%clk 0:00:11]} 61.
Ke2 {[%clk 0:00:23.1]} 61... Ra2+ {[%clk 0:00:11.9]} 62. Ke3 {[%clk 0:00:24.7]}
62... Ra3+ {[%clk 0:00:13.1]} 63. Ke2 {[%clk 0:00:25.8]} 63... Ra2+ {[%clk
0:00:14.4]} 64. Kf1 {[%clk 0:00:26.9]} 64... Ra1+ {[%clk 0:00:15.6]} 65. Kg2
{[%clk 0:00:28.1]} 65... Ra6 {[%clk 0:00:17.3]} 66. Kh3 {[%clk 0:00:28.3]} 66...
Ra2 {[%clk 0:00:16.1]} 67. f3 {[%clk 0:00:26.2]} 67... Ra3 {[%clk 0:00:15.8]}
68. f4+ {[%clk 0:00:25.1]} 68... Ke4 {[%clk 0:00:16.9]} 69. Rg6 {[%clk
0:00:26.2]} 69... Re7 {[%clk 0:00:11.9]} 70. Rh6 {[%clk 0:00:27.1]} 70... Kf3
{[%clk 0:00:10]} 71. Rxh5 {[%clk 0:00:22.4]} 71... Rc7 {[%clk 0:00:10.6]} 72.
Rd1 {[%clk 0:00:19.7]} 72... Rc2 {[%clk 0:00:10.5]} 73. Rf1+ {[%clk 0:00:20.5]}
73... Rf2 {[%clk 0:00:07.1]} 74. Rxf2+ {[%clk 0:00:18.6]} 74... Kxf2 {[%clk
0:00:09]} 75. Rg5 {[%clk 0:00:19.7]} 75... Ra1 {[%clk 0:00:10]} 76. Kh2 {[%clk
0:00:20.5]} 76... Kf3 {[%clk 0:00:08.3]} 77. h5 {[%clk 0:00:20.8]} 77... Ra2+
{[%clk 0:00:09.7]} 78. Kh3 {[%clk 0:00:21.4]} 78... Ra1 {[%clk 0:00:11.6]} 79.
Kh2 {[%clk 0:00:22.2]} 79... Ra2+ {[%clk 0:00:12.8]} 80. Kh3 {[%clk 0:00:23.5]}
80... Ra1 {[%clk 0:00:14.7]} 81. Kh2 {[%clk 0:00:22.4]} 81... Ra2+ {[%clk
0:00:15.9]} 82. Kh3 {[%clk 0:00:23.7]} 82... Ra1 {[%clk 0:00:17.5]} 1/2-1/2

[Event "*** Qualifier 1: Titled Tuesday 3|2 Blitz"]
[Site "Chess.com"]
[Date "2017.04.04"]
[Round "6"]
[White "GMHess"]
[Black "nonscitis"]
[Result "1-0"]
[WhiteElo "2591"]
[BlackElo "2359"]
[TimeControl "180+2"]
[EndTime "14:27:50 PDT"]
[Termination "GMHess won by checkmate"]

1. b3 {[%clk 0:02:46.5]} 1... e5 {[%clk 0:02:59.2]} 2. Bb2 {[%clk 0:02:48.4]}
2... Nc6 {[%clk 0:03:00.3]} 3. e3 {[%clk 0:02:37.5]} 3... d5 {[%clk 0:02:59.9]}
4. Bb5 {[%clk 0:02:38.2]} 4... Bd6 {[%clk 0:02:59.8]} 5. Nf3 {[%clk 0:02:39.4]}
5... Bg4 {[%clk 0:02:54.9]} 6. h3 {[%clk 0:02:40.3]} 6... Bxf3 {[%clk
0:02:55.6]} 7. Qxf3 {[%clk 0:02:42.2]} 7... a6 {[%clk 0:02:50.6]} 8. Bxc6+
{[%clk 0:02:42]} 8... bxc6 {[%clk 0:02:51.3]} 9. Qg3 {[%clk 0:02:37]} 9... Qf6
{[%clk 0:02:20.1]} 10. f4 {[%clk 0:02:36.1]} 10... d4 {[%clk 0:02:19.2]} 11. O-O
{[%clk 0:02:36.3]} 11... exf4 {[%clk 0:02:16.7]} 12. Qf3 {[%clk 0:02:32.8]}
12... Ne7 {[%clk 0:02:10.6]} 13. Bxd4 {[%clk 0:02:33.2]} 13... Qg6 {[%clk
0:01:52.9]} 14. e4 {[%clk 0:02:18.7]} 14... f6 {[%clk 0:01:23.2]} 15. d3 {[%clk
0:02:06.8]} 15... O-O {[%clk 0:01:23.4]} 16. Nd2 {[%clk 0:02:04.7]} 16... c5
{[%clk 0:01:18.1]} 17. Bf2 {[%clk 0:01:56.3]} 17... Nc6 {[%clk 0:01:17]} 18. Nc4
{[%clk 0:01:54.9]} 18... Ne5 {[%clk 0:01:17.5]} 19. Nxe5 {[%clk 0:01:55.4]}
19... fxe5 {[%clk 0:01:18.2]} 20. a4 {[%clk 0:01:50.7]} 20... a5 {[%clk
0:01:13.4]} 21. Kh2 {[%clk 0:01:29.6]} 21... h5 {[%clk 0:01:09.9]} 22. Rg1
{[%clk 0:01:27.9]} 22... Kh7 {[%clk 0:01:06.3]} 23. Raf1 {[%clk 0:01:26.3]}
23... Rf6 {[%clk 0:01:04.2]} 24. Bh4 {[%clk 0:01:21.7]} 24... Rf7 {[%clk
0:01:02.9]} 25. g4 {[%clk 0:01:14.6]} 25... fxg3+ {[%clk 0:00:37.6]} 26. Qxg3
{[%clk 0:01:14.1]} 26... Qxg3+ {[%clk 0:00:38]} 27. Bxg3 {[%clk 0:01:13]} 27...
Kg8 {[%clk 0:00:26.2]} 28. Be1 {[%clk 0:01:07.2]} 28... Rxf1 {[%clk 0:00:20.8]}
29. Rxf1 {[%clk 0:01:09.1]} 29... g6 {[%clk 0:00:21.8]} 30. Bh4 {[%clk
0:00:58.1]} 30... Kg7 {[%clk 0:00:20.7]} 31. Bf6+ {[%clk 0:00:58.3]} 31... Kg8
{[%clk 0:00:21.7]} 32. Bg5 {[%clk 0:00:55.8]} 32... Kg7 {[%clk 0:00:21.9]} 33.
Kg3 {[%clk 0:00:57.1]} 33... Re8 {[%clk 0:00:18.6]} 34. Bd2 {[%clk 0:00:47.7]}
34... Ra8 {[%clk 0:00:18.8]} 35. Bg5 {[%clk 0:00:48.9]} 35... Re8 {[%clk
0:00:19.2]} 36. Bf6+ {[%clk 0:00:26.5]} 36... Kg8 {[%clk 0:00:19.3]} 37. Rf3
{[%clk 0:00:18.1]} 37... Rf8 {[%clk 0:00:14.9]} 38. Bg5 {[%clk 0:00:16.1]} 38...
Re8 {[%clk 0:00:16]} 39. Kh4 {[%clk 0:00:14.4]} 39... Kg7 {[%clk 0:00:16.3]} 40.
Bf6+ {[%clk 0:00:15.4]} 40... Kh7 {[%clk 0:00:14.9]} 41. Kg5 {[%clk 0:00:12.7]}
41... Bf8 {[%clk 0:00:15.3]} 42. Kh4 {[%clk 0:00:11.7]} 42... Bd6 {[%clk
0:00:13.7]} 43. Bg5 {[%clk 0:00:13.1]} 43... Kg7 {[%clk 0:00:14.7]} 44. Rf6
{[%clk 0:00:13]} 44... Rc8 {[%clk 0:00:08.7]} 45. Rf1 {[%clk 0:00:10.6]} 45...
Re8 {[%clk 0:00:09.1]} 46. Kg3 {[%clk 0:00:08.9]} 46... Ra8 {[%clk 0:00:05.2]}
47. Bd2 {[%clk 0:00:09.3]} 47... Be7 {[%clk 0:00:05]} 48. Rf3 {[%clk 0:00:08.8]}
48... Bd6 {[%clk 0:00:06.2]} 49. Bc3 {[%clk 0:00:09.8]} 49... Ra7 {[%clk
0:00:06.2]} 50. Kf2 {[%clk 0:00:11.1]} 50... Ra8 {[%clk 0:00:07.4]} 51. Ke3
{[%clk 0:00:12.4]} 51... Kg8 {[%clk 0:00:06.9]} 52. Rg3 {[%clk 0:00:10.5]} 52...
Kg7 {[%clk 0:00:07.7]} 53. Be1 {[%clk 0:00:10.9]} 53... Kf6 {[%clk 0:00:08.7]}
54. Rf3+ {[%clk 0:00:11.1]} 54... Kg7 {[%clk 0:00:09.7]} 55. Bh4 {[%clk
0:00:08.8]} 55... Re8 {[%clk 0:00:10.3]} 56. Kd2 {[%clk 0:00:09.8]} 56... Ra8
{[%clk 0:00:10]} 57. Kc3 {[%clk 0:00:10.9]} 57... Rb8 {[%clk 0:00:10.1]} 58. Kc4
{[%clk 0:00:11.2]} 58... c6 {[%clk 0:00:11.1]} 59. Be1 {[%clk 0:00:11.3]} 59...
Bc7 {[%clk 0:00:10.9]} 60. Kxc5 {[%clk 0:00:10]} 60... Rc8 {[%clk 0:00:09.7]}
61. Bc3 {[%clk 0:00:08.6]} 61... Bb8 {[%clk 0:00:09]} 62. Bxa5 {[%clk
0:00:09.3]} 62... g5 {[%clk 0:00:09.3]} 63. Bd2 {[%clk 0:00:08.1]} 63... Kh6
{[%clk 0:00:07.6]} 64. Rf6+ {[%clk 0:00:08.1]} 64... Kg7 {[%clk 0:00:07.7]} 65.
Bxg5 {[%clk 0:00:09]} 65... Ba7+ {[%clk 0:00:08.7]} 66. Kc4 {[%clk 0:00:09.8]}
66... Be3 {[%clk 0:00:10.1]} 67. Rf5 {[%clk 0:00:09.5]} 67... Bd4 {[%clk
0:00:11.2]} 68. Bf6+ {[%clk 0:00:10.3]} 68... Kg6 {[%clk 0:00:12.4]} 69. Bxe5
{[%clk 0:00:11.8]} 69... Be3 {[%clk 0:00:13.1]} 70. h4 {[%clk 0:00:12.3]} 70...
Bh6 {[%clk 0:00:12.8]} 71. Rf6+ {[%clk 0:00:13.1]} 71... Kh7 {[%clk 0:00:13.9]}
72. Re6 {[%clk 0:00:14.1]} 72... Bf8 {[%clk 0:00:12.7]} 73. a5 {[%clk
0:00:14.2]} 73... Kg8 {[%clk 0:00:13.7]} 74. a6 {[%clk 0:00:14.3]} 74... Kf7
{[%clk 0:00:14.8]} 75. Rf6+ {[%clk 0:00:15.2]} 75... Ke8 {[%clk 0:00:15.6]} 76.
a7 {[%clk 0:00:16.2]} 76... Ra8 {[%clk 0:00:16.5]} 77. Bb8 {[%clk 0:00:16.5]}
77... Be7 {[%clk 0:00:15]} 78. Rh6 {[%clk 0:00:17.4]} 78... Kd7 {[%clk
0:00:16.2]} 79. Rxh5 {[%clk 0:00:18.2]} 79... Kc8 {[%clk 0:00:13.5]} 80. Rh8+
{[%clk 0:00:19.1]} 80... Kb7 {[%clk 0:00:14.3]} 81. Rh7 {[%clk 0:00:20.5]} 81...
Ka6 {[%clk 0:00:14]} 82. Rxe7 {[%clk 0:00:19]} 82... c5 {[%clk 0:00:15.9]} 83.
Re6+ {[%clk 0:00:19.4]} 83... Ka5 {[%clk 0:00:16.6]} 84. Bc7# {[%clk 0:00:19.1]}
1-0

[Event "*** Qualifier 1: Titled Tuesday 3|2 Blitz"]
[Site "Chess.com"]
[Date "2017.04.04"]
[Round "6"]
[White "evgenyermolaev"]
[Black "keisyzrk"]
[Result "0-1"]
[WhiteElo "2373"]
[BlackElo "2265"]
[TimeControl "180+2"]
[EndTime "14:28:32 PDT"]
[Termination "keisyzrk won by resignation"]

1. e4 {[%clk 0:03:02]} 1... c6 {[%clk 0:02:56.6]} 2. d4 {[%clk 0:03:02.3]} 2...
d5 {[%clk 0:02:57.7]} 3. e5 {[%clk 0:03:03.2]} 3... Bf5 {[%clk 0:02:58.5]} 4.
Nf3 {[%clk 0:03:02.5]} 4... e6 {[%clk 0:02:59.8]} 5. Be2 {[%clk 0:03:03.7]} 5...
Nd7 {[%clk 0:03:01.1]} 6. O-O {[%clk 0:03:04.4]} 6... h6 {[%clk 0:03:01.4]} 7.
c4 {[%clk 0:03:03.6]} 7... Ne7 {[%clk 0:03:00.5]} 8. Nc3 {[%clk 0:02:59.8]} 8...
Bh7 {[%clk 0:02:57.1]} 9. Bd3 {[%clk 0:02:42.6]} 9... Bxd3 {[%clk 0:02:55.8]}
10. Qxd3 {[%clk 0:02:43.3]} 10... dxc4 {[%clk 0:02:57]} 11. Qxc4 {[%clk
0:02:42.3]} 11... Nb6 {[%clk 0:02:58.6]} 12. Qd3 {[%clk 0:02:41.5]} 12... Ned5
{[%clk 0:03:00]} 13. Ne4 {[%clk 0:02:40.6]} 13... Be7 {[%clk 0:03:00.9]} 14. a4
{[%clk 0:02:16.5]} 14... Nb4 {[%clk 0:02:36.2]} 15. Qd2 {[%clk 0:02:10.9]} 15...
a5 {[%clk 0:02:37]} 16. b3 {[%clk 0:02:07.6]} 16... O-O {[%clk 0:02:36.9]} 17.
Qe2 {[%clk 0:01:44.1]} 17... N6d5 {[%clk 0:02:35]} 18. Ne1 {[%clk 0:01:28.7]}
18... Qb6 {[%clk 0:02:22.1]} 19. Qg4 {[%clk 0:01:22.3]} 19... Kh8 {[%clk
0:02:18.1]} 20. Bb2 {[%clk 0:01:11.1]} 20... Rae8 {[%clk 0:02:02.8]} 21. Qg3
{[%clk 0:01:06.9]} 21... Qd8 {[%clk 0:01:35.3]} 22. f4 {[%clk 0:00:57.7]} 22...
Bh4 {[%clk 0:01:31.9]} 23. Qh3 {[%clk 0:00:50.7]} 23... f5 {[%clk 0:01:08.4]}
24. Nd6 {[%clk 0:00:47.4]} 24... Bxe1 {[%clk 0:01:01.3]} 25. Raxe1 {[%clk
0:00:25.4]} 25... Re7 {[%clk 0:01:00.7]} 26. Kh1 {[%clk 0:00:23]} 26... Rd7
{[%clk 0:01:01.2]} 27. g4 {[%clk 0:00:21.9]} 27... Rxd6 {[%clk 0:00:56.9]} 28.
exd6 {[%clk 0:00:22.2]} 28... Qxd6 {[%clk 0:00:58.8]} 29. Ba3 {[%clk 0:00:22.1]}
29... Nxf4 {[%clk 0:00:52]} 30. Qg3 {[%clk 0:00:23]} 30... fxg4 {[%clk
0:00:52.8]} 31. Bxb4 {[%clk 0:00:15.6]} 31... axb4 {[%clk 0:00:52.8]} 32. Re4
{[%clk 0:00:10.8]} 32... g5 {[%clk 0:00:36.6]} 33. Qxg4 {[%clk 0:00:10.4]} 33...
Qd5 {[%clk 0:00:37.7]} 34. Re1 {[%clk 0:00:11.4]} 34... Nd3 {[%clk 0:00:35.5]}
35. Qxe6 {[%clk 0:00:08]} 35... Qxe6 {[%clk 0:00:32.3]} 36. Rxe6 {[%clk
0:00:08.7]} 36... Nxe1 {[%clk 0:00:33.9]} 37. Rxe1 {[%clk 0:00:09.7]} 37... Rf3
{[%clk 0:00:35.5]} 38. Re8+ {[%clk 0:00:09.7]} 38... Kg7 {[%clk 0:00:36.1]} 39.
Re7+ {[%clk 0:00:11.4]} 39... Kg6 {[%clk 0:00:34.8]} 40. Rxb7 {[%clk 0:00:12.4]}
40... Rxb3 {[%clk 0:00:36.3]} 41. Rb6 {[%clk 0:00:13.5]} 41... Kf5 {[%clk
0:00:27.2]} 42. Rxc6 {[%clk 0:00:13.4]} 42... h5 {[%clk 0:00:28.2]} 43. a5
{[%clk 0:00:11.8]} 43... Rb2 {[%clk 0:00:19.8]} 44. a6 {[%clk 0:00:11.3]} 44...
b3 {[%clk 0:00:20.1]} 45. a7 {[%clk 0:00:11]} 45... Ra2 {[%clk 0:00:21.4]} 46.
Rb6 {[%clk 0:00:12.3]} 46... Rxa7 {[%clk 0:00:18.6]} 47. Rxb3 {[%clk 0:00:13.3]}
47... Ra2 {[%clk 0:00:20.1]} 48. Rd3 {[%clk 0:00:12]} 48... Ke4 {[%clk
0:00:20.9]} 49. Rd1 {[%clk 0:00:12.8]} 49... Ra5 {[%clk 0:00:19.5]} 50. Kg2
{[%clk 0:00:07.9]} 50... Rd5 {[%clk 0:00:19.7]} 51. Re1+ {[%clk 0:00:08.1]}
51... Kxd4 {[%clk 0:00:20.5]} 52. Kg3 {[%clk 0:00:09.4]} 52... Rf5 {[%clk
0:00:20.5]} 53. h3 {[%clk 0:00:08.3]} 53... Kd3 {[%clk 0:00:20.3]} 54. Re8
{[%clk 0:00:08.6]} 54... Kd4 {[%clk 0:00:20.7]} 55. Re7 {[%clk 0:00:09.3]} 55...
Re5 {[%clk 0:00:21]} 56. Rh7 {[%clk 0:00:09.8]} 56... h4+ {[%clk 0:00:19.3]} 57.
Kg4 {[%clk 0:00:10.2]} 57... Ke3 {[%clk 0:00:20.8]} 58. Rg7 {[%clk 0:00:09.9]}
58... Kf2 {[%clk 0:00:21.6]} 59. Rg8 {[%clk 0:00:05.6]} 59... Kg2 {[%clk
0:00:22.2]} 60. Rh8 {[%clk 0:00:05.8]} 60... Ra5 {[%clk 0:00:22.1]} 61. Rh7
{[%clk 0:00:06.3]} 61... Rb5 {[%clk 0:00:18.5]} 62. Rh8 {[%clk 0:00:07.3]} 62...
Rb3 {[%clk 0:00:12.6]} 63. Kxg5 {[%clk 0:00:07.4]} 63... Kg3 {[%clk 0:00:13.7]}
64. Kf5 {[%clk 0:00:02.6]} 64... Rb4 {[%clk 0:00:04.2]} 65. Rg8+ {[%clk
0:00:03]} 65... Kxh3 {[%clk 0:00:05.2]} 66. Rg7 {[%clk 0:00:02.4]} 66... Kh2
{[%clk 0:00:06.1]} 67. Rh7 {[%clk 0:00:03.5]} 67... h3 {[%clk 0:00:06.8]} 68.
Rg7 {[%clk 0:00:04.9]} 68... Kh1 {[%clk 0:00:07.7]} 69. Rh7 {[%clk 0:00:06]}
69... h2 {[%clk 0:00:09.1]} 70. Rg7 {[%clk 0:00:07]} 70... Rb2 {[%clk
0:00:08.6]} 71. Kf4 {[%clk 0:00:08.1]} 71... Rg2 {[%clk 0:00:07.3]} 72. Ra7
{[%clk 0:00:08.8]} 72... Kg1 {[%clk 0:00:08.6]} 73. Ra1+ {[%clk 0:00:08.9]}
73... Kf2 {[%clk 0:00:09.7]} 74. Rh1 {[%clk 0:00:09.5]} 74... Ke2 {[%clk
0:00:06.8]} 75. Ke4 {[%clk 0:00:07.2]} 75... Rg4+ {[%clk 0:00:07.4]} 76. Kf5
{[%clk 0:00:07.6]} 76... Rg2 {[%clk 0:00:07.5]} 77. Ke4 {[%clk 0:00:06.7]} 77...
Rg4+ {[%clk 0:00:08.4]} 78. Kf5 {[%clk 0:00:07.7]} 78... Rh4 {[%clk 0:00:09.2]}
79. Kg5 {[%clk 0:00:08.8]} 79... Rh8 {[%clk 0:00:09.2]} 80. Kg4 {[%clk
0:00:08.1]} 80... Kf2 {[%clk 0:00:10.5]} 0-1